bitfinex-derivatives/quotes_BTCF0:USTF0_20241010
["timestamp","ask_amount","ask_price","bid_price","bid_amount"]
[1728562945683,0.008,61311.0,61310.0,0.932758]
[1728562945886,0.008,61311.0,61310.0,0.443438]
[1728562946285,0.006,61311.0,61310.0,0.446438]
[1728562947085,0.001,61311.0,61310.0,0.449438]
[1728562947490,0.001,61311.0,61310.0,0.46768928]
[1728562949586,0.04097434,61311.0,61310.0,0.46768928]
[1728562950387,0.001,61311.0,61310.0,0.46768928]
[1728562950798,0.04097435,61311.0,61310.0,0.46768928]
[1728562954797,0.04097536,61311.0,61310.0,0.10688928]
[1728562954995,0.04097536,61311.0,61310.0,0.46768928]
[1728562955998,0.09108156,61311.0,61310.0,0.46768928]
[1728562956298,0.09108156,61311.0,61310.0,0.46868928]
[1728562956694,0.09108156,61311.0,61310.0,0.28899102]
[1728562956695,0.12261426,61311.0,61310.0,0.28899102]
[1728562956895,0.12361426,61311.0,61310.0,0.29899102]
[1728562957493,0.28663371,61311.0,61310.0,0.29899102]
[1728562957799,0.002,61311.0,61310.0,0.31748951]
[1728562957999,0.002,61311.0,61310.0,0.11413649]
[1728562958202,0.002,61311.0,61310.0,0.47493649]
[1728562959116,0.083637,61311.0,61310.0,0.456438]
[1728562963120,0.002,61311.0,61310.0,0.456438]
[1728562963316,0.002,61311.0,61310.0,0.646438]
[1728562964616,0.09208405,61311.0,61310.0,0.646438]
[1728562965013,0.2551035,61311.0,61310.0,0.646438]
[1728562965216,0.09208405,61311.0,61310.0,0.646438]
[1728562965416,0.14617899,61314.0,61311.0,0.081637]
[1728562965725,0.14617899,61317.0,61315.0,0.081631]
[1728562965929,0.14617899,61317.0,61316.0,0.63243]
[1728562966128,0.14617899,61318.0,61317.0,0.081629]
[1728562966323,0.16301945,61321.0,61320.0,0.081625]
[1728562966523,0.16301945,61321.0,61320.0,0.271625]
[1728562966923,0.16301945,61324.0,61323.0,0.081621]
[1728562967122,0.16301945,61324.0,61323.0,0.632421]
[1728562967437,0.00244655,61325.0,61324.0,0.081619]
[1728562968026,0.14868562,61325.0,61324.0,0.081619]
[1728562968228,0.00244655,61325.0,61324.0,0.081619]
[1728562969331,0.00344655,61325.0,61324.0,0.089619]
[1728562969934,0.08506455,61325.0,61324.0,0.089619]
[1728562970235,0.08606455,61325.0,61324.0,0.097619]
[1728562970431,0.136164,61325.0,61324.0,0.097619]
[1728562971334,0.19470482,61325.0,61324.0,0.097619]
[1728562971636,0.081625,61320.0,61319.0,0.081626]
[1728562971838,0.271627,61318.0,61317.0,0.3608]
[1728562972136,0.38026734,61318.0,61317.0,0.3608]
[1728562972723,0.40201038,61318.0,61317.0,0.3608]
[1728562973125,0.40301038,61318.0,61317.0,0.3748]
[1728562973443,0.31260249,61318.0,61317.0,0.456429]
[1728562973749,0.31360249,61318.0,61317.0,0.3888]
[1728562974230,0.31360249,61318.0,61317.0,0.028]
[1728562974937,0.44401319,61318.0,61317.0,0.028]
[1728562975336,0.31360249,61318.0,61317.0,0.028]
[1728562975728,0.51039291,61318.0,61317.0,0.028]
[1728562978135,0.36371161,61318.0,61317.0,0.028]
[1728562978841,0.4456438,61318.0,61317.0,0.028]
[1728562979635,0.50419611,61318.0,61317.0,0.028]
[1728562981040,0.50419846,61318.0,61317.0,0.028]
[1728562981834,0.48606627,61318.0,61317.0,0.028]
[1728562982034,0.48606627,61318.0,61317.0,0.109629]
[1728562983443,0.29606627,61318.0,61317.0,0.109629]
[1728562984345,0.29606627,61318.0,61315.0,0.35918454]
[1728562984641,0.23026827,61317.0,61316.0,0.08163]
[1728562984836,0.14863927,61317.0,61316.0,0.08163]
[1728562985436,0.14863927,61317.0,61316.0,0.27163]
[1728562985437,0.14863639,61317.0,61316.0,0.27163]
[1728562986040,0.3019307,61317.0,61316.0,0.27163]
[1728562986445,0.14963639,61317.0,61316.0,0.28363]
[1728562986649,0.15063639,61317.0,61316.0,0.28363]
[1728562986947,0.09208408,61317.0,61316.0,0.28363]
[1728562987749,0.04197639,61317.0,61316.0,0.28363]
[1728562989845,0.04197639,61317.0,61316.0,0.64443]
[1728562990142,0.04197174,61317.0,61316.0,0.64443]
[1728562991050,0.17231693,61317.0,61316.0,0.45443]
[1728562991355,0.04197174,61317.0,61316.0,0.45443]
[1728562991743,0.17231395,61317.0,61316.0,0.45443]
[1728562992545,0.04197174,61317.0,61316.0,0.45443]
[1728562992749,0.13234905,61317.0,61316.0,0.45443]
[1728562993056,0.17232079,61317.0,61316.0,0.45443]
[1728562993948,0.04197174,61317.0,61316.0,0.45443]
[1728562994541,0.17233354,61317.0,61316.0,0.45443]
[1728562994747,0.002,61317.0,61316.0,0.45443]
[1728562994952,0.083629,61317.0,61316.0,0.45443]
[1728562995253,0.083629,61317.0,61316.0,0.44243]
[1728562996045,0.083629,61317.0,61316.0,0.08163]
[1728562996245,0.083629,61317.0,61316.0,0.44243]
[1728562996752,0.001,61317.0,61316.0,0.44243]
[1728562996946,0.002,61317.0,61316.0,0.44243]
[1728563001849,0.001,61317.0,61316.0,0.44243]
[1728563002054,0.002,61317.0,61316.0,0.44243]
[1728563002650,0.09207029,61317.0,61316.0,0.44243]
[1728563003957,0.15061218,61317.0,61316.0,0.44243]
[1728563004858,0.0920707,61317.0,61316.0,0.44243]
[1728563006251,0.15061218,61317.0,61316.0,0.44243]
[1728563006450,0.15061218,61317.0,61316.0,0.80323]
[1728563006659,0.15061188,61317.0,61316.0,0.80323]
[1728563006860,0.15061188,61317.0,61316.0,0.08163]
[1728563007057,0.15061188,61317.0,61316.0,0.80323]
[1728563007561,0.0920704,61317.0,61316.0,0.80323]
[1728563009269,0.15061188,61317.0,61316.0,0.80323]
[1728563009856,0.002,61317.0,61316.0,0.80323]
[1728563010462,0.11615516,61317.0,61316.0,0.80323]
[1728563011664,0.11615516,61317.0,61316.0,0.08163]
[1728563011871,0.11615516,61317.0,61316.0,0.44243]
[1728563012452,0.002,61317.0,61316.0,0.44243]
[1728563012857,0.0419738,61317.0,61316.0,0.44243]
[1728563013569,0.002,61317.0,61316.0,0.44243]
[1728563016675,2.09924,61317.0,61301.0,0.04894043]
[1728563016877,2.09924,61317.0,61294.0,0.42609003]
[1728563016878,0.5508,61302.0,61284.0,0.3608]
[1728563017169,0.32063312,61286.0,61284.0,0.3608]
[1728563017364,0.58923692,61290.0,61279.0,0.081678]
[1728563017365,0.59079424,61285.0,61279.0,0.081678]
[1728563017577,0.59079424,61285.0,61276.0,0.00244792]
[1728563017578,0.271682,61277.0,61276.0,0.00244792]
[1728563017982,0.3116838,61277.0,61276.0,0.00244792]
[1728563018358,0.271682,61277.0,61276.0,0.00244792]
[1728563019467,0.632482,61277.0,61276.0,0.00244792]
[1728563019670,0.633482,61277.0,61276.0,0.00244792]
[1728563020763,0.632482,61277.0,61276.0,0.00244792]
[1728563020971,0.634482,61277.0,61276.0,0.00244792]
[1728563022177,0.635482,61277.0,61276.0,0.00244792]
[1728563024071,0.996282,61277.0,61276.0,0.00244792]
[1728563025866,0.081685,61275.0,61253.0,0.442514]
[1728563026074,0.081703,61262.0,61253.0,0.3608]
[1728563026277,0.19,61256.0,61255.0,0.081711]
[1728563026462,0.63251,61256.0,61255.0,0.081711]
[1728563026776,0.63251,61256.0,61249.0,0.0614]
[1728563026973,0.63251,61256.0,61251.0,0.081714]
[1728563026974,0.081715,61252.0,61251.0,0.081714]
[1728563027363,0.081718,61250.0,61249.0,0.0614]
[1728563027566,0.632518,61250.0,61249.0,0.143119]
[1728563028463,0.633518,61250.0,61249.0,0.143119]
[1728563029576,0.634518,61250.0,61249.0,0.143119]
[1728563032075,0.192,61250.0,61249.0,0.143119]
[1728563032271,0.3608,61262.0,61261.0,0.081703]
[1728563032582,0.442502,61262.0,61261.0,0.081703]
[1728563032973,0.442502,61262.0,61252.0,0.081714]
[1728563032974,0.081704,61261.0,61252.0,0.081714]
[1728563033282,0.081714,61253.0,61252.0,0.081714]
[1728563034182,0.19,61255.0,61254.0,0.081713]
[1728563034183,0.271711,61255.0,61254.0,0.081713]
[1728563035468,0.272711,61255.0,61254.0,0.081713]
[1728563037172,0.273711,61255.0,61254.0,0.081713]
[1728563038079,0.21647333,61255.0,61254.0,0.081713]
[1728563038280,0.083711,61255.0,61254.0,0.081713]
[1728563040483,0.081698,61265.0,61264.0,0.081695]
[1728563040681,0.081698,61265.0,61264.0,0.271695]
[1728563041181,0.081693,61269.0,61264.0,0.19]
[1728563041374,0.442495,61268.0,61267.0,0.081695]
[1728563041779,0.3608,61268.0,61267.0,0.081695]
[1728563042175,0.442494,61268.0,61267.0,0.081695]
[1728563042376,0.443494,61268.0,61267.0,0.081695]
[1728563043477,0.443494,61268.0,61267.0,0.082695]
[1728563044186,0.442494,61268.0,61267.0,0.082695]
[1728563044389,0.442494,61268.0,61267.0,0.084695]
[1728563045379,0.3608,61268.0,61267.0,0.274695]
[1728563045581,0.442488,61274.0,61273.0,0.081687]
[1728563045888,0.442488,61274.0,61273.0,0.271687]
[1728563046489,0.442488,61274.0,61273.0,0.081687]
[1728563047187,0.081692,61271.0,61270.0,0.081689]
[1728563047982,0.448488,61274.0,61273.0,0.081687]
[1728563048179,0.448488,61274.0,61273.0,0.20555581]
[1728563048587,0.453488,61274.0,61273.0,0.20555581]
[1728563048785,0.447488,61274.0,61273.0,0.20555581]
[1728563049886,0.442488,61274.0,61273.0,0.20855581]
[1728563050794,0.442488,61274.0,61273.0,0.21155581]
[1728563053282,0.3608,61274.0,61273.0,0.21155581]
[1728563053878,0.39344388,61274.0,61273.0,0.21155581]
[1728563054091,0.081686,61274.0,61273.0,0.21155581]
[1728563054293,0.081686,61274.0,61273.0,0.24265581]
[1728563054991,0.081686,61274.0,61273.0,0.118787]
[1728563056998,0.082686,61274.0,61273.0,0.120787]
[1728563057895,0.082686,61274.0,61273.0,0.0361]
[1728563058196,0.083686,61274.0,61273.0,0.0431]
[1728563059394,0.083686,61274.0,61273.0,0.0411]
[1728563060201,0.083686,61274.0,61273.0,0.01]
[1728563061897,0.02646745,61274.0,61273.0,0.28056023]
[1728563062097,0.002,61274.0,61273.0,0.28056023]
[1728563062395,0.083686,61274.0,61273.0,0.55224723]
[1728563062992,0.081682,61277.0,61273.0,0.55224723]
[1728563063298,0.081686,61274.0,61273.0,0.281687]
[1728563063486,0.081686,61274.0,61273.0,0.55037363]
[1728563063991,0.081686,61274.0,61273.0,0.54537363]
[1728563064193,0.081686,61274.0,61273.0,0.55137363]
[1728563064397,0.081686,61274.0,61273.0,0.36137363]
[1728563064796,0.082686,61274.0,61273.0,0.36137363]
[1728563065394,0.083686,61274.0,61273.0,0.36137363]
[1728563069702,0.083686,61274.0,61273.0,0.47563118]
[1728563069896,0.083686,61274.0,61273.0,0.36137363]
[1728563071603,0.083686,61274.0,61273.0,0.21526516]
[1728563072201,0.083686,61274.0,61273.0,0.36212498]
[1728563072508,0.083686,61274.0,61273.0,0.31354451]
[1728563073602,0.083686,61274.0,61273.0,0.21559875]
[1728563074213,0.083686,61274.0,61273.0,0.31354451]
[1728563074419,0.083686,61274.0,61273.0,0.21559875]
[1728563076024,0.083686,61274.0,61273.0,0.13391175]
[1728563076025,0.273686,61274.0,61273.0,0.13391175]
[1728563076219,0.273686,61274.0,61273.0,0.21559875]
[1728563076827,0.273686,61274.0,61273.0,0.13391175]
[1728563077131,0.273686,61274.0,61273.0,0.011]
[1728563077518,0.38750121,61274.0,61273.0,0.011]
[1728563078229,0.38750121,61274.0,61273.0,0.092687]
[1728563078415,0.083686,61274.0,61273.0,0.092687]
[1728563079319,0.083686,61274.0,61273.0,0.011]
[1728563081028,0.083686,61274.0,61273.0,0.092687]
[1728563083727,0.3628,61274.0,61273.0,0.092687]
[1728563084225,0.3628,61274.0,61273.0,0.122687]
[1728563085018,0.32193036,61274.0,61273.0,0.24569696]
[1728563086023,0.32193036,61274.0,61273.0,0.34364272]
[1728563087021,0.32193036,61274.0,61273.0,0.36644983]
[1728563088425,0.32193036,61274.0,61273.0,0.4147197]
[1728563088826,0.32193036,61274.0,61273.0,0.3964067]
[1728563089432,0.081681,61278.0,61273.0,0.3964067]
[1728563089635,0.442481,61278.0,61277.0,0.081682]
[1728563089827,0.442481,61278.0,61277.0,0.20469196]
[1728563090028,0.442481,61278.0,61277.0,0.23509196]
[1728563090737,0.443481,61278.0,61277.0,0.23509196]
[1728563091130,0.443481,61278.0,61277.0,0.23609196]
[1728563091437,0.443481,61278.0,61277.0,0.23574957]
[1728563091827,0.442481,61278.0,61277.0,0.23574957]
[1728563092037,0.48248461,61278.0,61277.0,0.115082]
[1728563096638,0.12168461,61278.0,61277.0,0.115082]
[1728563096839,0.48248461,61278.0,61277.0,0.115082]
[1728563097032,0.12168461,61278.0,61277.0,0.115082]
[1728563097230,0.48248461,61278.0,61277.0,0.115082]
[1728563100143,0.48248461,61278.0,61277.0,0.23775722]
[1728563100144,0.442481,61278.0,61277.0,0.23775722]
[1728563101151,0.442481,61278.0,61277.0,0.42775722]
[1728563102544,0.442481,61278.0,61277.0,0.35775722]
[1728563104142,0.442481,61278.0,61277.0,0.35776281]
[1728563104842,0.442481,61278.0,61277.0,0.23776281]
[1728563105353,0.081681,61278.0,61277.0,0.23776281]
[1728563106942,0.081681,61278.0,61277.0,0.35776281]
[1728563107248,0.3608,61281.0,61278.0,0.3608]
[1728563107438,0.081679,61280.0,61279.0,0.081679]
[1728563108748,0.083679,61280.0,61279.0,0.081679]
[1728563109141,0.084679,61280.0,61279.0,0.081679]
[1728563113153,0.084679,61280.0,61279.0,0.14703605]
[1728563113351,0.084679,61280.0,61279.0,0.081679]
[1728563115251,0.12468039,61280.0,61279.0,0.081679]
[1728563118349,0.084679,61280.0,61279.0,0.081679]
[1728563118556,0.12468038,61280.0,61279.0,0.081679]
[1728563120661,0.17481939,61280.0,61279.0,0.081679]
[1728563122261,0.084679,61280.0,61279.0,0.14704299]
[1728563123155,0.084679,61280.0,61279.0,0.081679]
[1728563127969,0.442474,61283.0,61279.0,0.081679]
[1728563128168,0.081677,61281.0,61280.0,0.14703202]
[1728563128354,0.081677,61281.0,61280.0,0.081677]
[1728563130256,0.23064149,61281.0,61280.0,0.081677]
[1728563130467,0.32078427,61281.0,61280.0,0.081677]
[1728563131266,0.32278427,61281.0,61280.0,0.081677]
[1728563131562,0.68358427,61281.0,61280.0,0.081677]
[1728563132266,1.88132693,61281.0,61257.0,0.42615502]
[1728563132471,0.081705,61262.0,61261.0,0.081702]
[1728563133566,0.12171378,61262.0,61261.0,0.081702]
[1728563133964,0.12171378,61262.0,61259.0,0.201703]
[1728563133965,0.081705,61260.0,61259.0,0.201703]
[1728563134567,0.081705,61260.0,61259.0,0.081703]
[1728563134963,0.001,61260.0,61259.0,0.007]
[1728563135174,0.11426502,61266.0,61262.0,0.006]
[1728563135369,0.081697,61266.0,61263.0,0.3608]
[1728563135567,0.081701,61263.0,61262.0,0.006]
[1728563135765,0.081701,61263.0,61259.0,0.088705]
[1728563136068,0.082705,61260.0,61259.0,0.094705]
[1728563136369,0.082705,61260.0,61259.0,0.013]
[1728563136370,0.633505,61260.0,61259.0,0.013]
[1728563136566,0.633505,61260.0,61254.0,0.10411462]
[1728563136567,0.081711,61255.0,61254.0,0.10411462]
[1728563136762,0.081711,61255.0,61254.0,0.271712]
[1728563137163,0.082701,61263.0,61254.0,0.45959904]
[1728563137368,0.082701,61263.0,61262.0,0.08156739]
[1728563137562,0.083701,61263.0,61262.0,0.08956739]
[1728563137763,0.083701,61263.0,61262.0,0.008]
[1728563138169,0.081702,61262.0,61261.0,0.08156739]
[1728563138365,0.081703,61261.0,61260.0,0.08156739]
[1728563138568,0.081703,61261.0,61260.0,0.20392982]
[1728563138965,0.081703,61261.0,61260.0,0.12236243]
[1728563139267,0.081703,61261.0,61260.0,0.08150845]
[1728563139572,0.081703,61261.0,61260.0,0.03150845]
[1728563139974,0.082703,61261.0,61260.0,0.03150845]
[1728563140370,0.081706,61259.0,61258.0,0.081706]
[1728563140566,0.081706,61259.0,61258.0,0.20359692]
[1728563141679,0.082706,61259.0,61258.0,0.12189092]
[1728563142075,0.083706,61259.0,61258.0,0.12189092]
[1728563142568,0.083706,61259.0,61258.0,0.20359792]
[1728563144074,0.10685694,61259.0,61258.0,0.081707]
[1728563144470,0.081707,61258.0,61257.0,0.0668]
[1728563144669,0.081707,61258.0,61257.0,0.18855106]
[1728563145282,0.081707,61258.0,61257.0,0.0668]
[1728563145877,0.082707,61258.0,61257.0,0.0668]
[1728563146175,0.083707,61258.0,61257.0,0.148509]
[1728563151473,0.002,61258.0,61257.0,0.148509]
[1728563151675,0.081701,61263.0,61257.0,0.4276]
[1728563151877,0.081701,61263.0,61262.0,0.081702]
[1728563152273,0.081701,61263.0,61262.0,0.20322954]
[1728563152785,0.083701,61263.0,61262.0,0.20322954]
[1728563154381,0.083701,61263.0,61262.0,0.20422954]
[1728563154781,0.082701,61263.0,61262.0,0.20422954]
[1728563154983,0.083701,61263.0,61262.0,0.20522954]
[1728563156378,0.083701,61263.0,61262.0,0.32528189]
[1728563158489,0.083701,61263.0,61262.0,0.20528189]
[1728563159682,1.173381,61263.0,61262.0,0.12357989]
[1728563159882,0.163419,61258.0,61257.0,0.081708]
[1728563160076,0.442508,61258.0,61257.0,0.081708]
[1728563161188,0.081708,61258.0,61257.0,0.081708]
[1728563161389,0.083708,61258.0,61257.0,0.083708]
[1728563161790,0.083708,61258.0,61257.0,0.116008]
[1728563162088,0.002,61258.0,61257.0,0.116008]
[1728563162288,0.083707,61258.0,61257.0,0.083708]
[1728563162476,0.273707,61258.0,61257.0,0.083708]
[1728563164882,0.273707,61258.0,61257.0,0.22722562]
[1728563165081,0.273707,61258.0,61257.0,0.083708]
[1728563165291,0.273707,61258.0,61257.0,0.22723675]
[1728563166689,0.083707,61258.0,61257.0,0.22723675]
[1728563166892,0.002,61258.0,61257.0,0.41723675]
[1728563167493,0.081702,61263.0,61257.0,0.41723675]
[1728563167494,0.081702,61263.0,61262.0,0.081702]
[1728563168688,0.082702,61263.0,61262.0,0.081702]
[1728563168889,0.002,61263.0,61262.0,0.081702]
[1728563169590,0.083701,61263.0,61262.0,0.081702]
[1728563170593,0.002,61263.0,61262.0,0.081702]
[1728563171002,0.083701,61263.0,61262.0,0.081702]
[1728563175495,0.083701,61263.0,61262.0,0.20208442]
[1728563182305,0.0428238,61263.0,61262.0,0.20208442]
[1728563182602,0.07438474,61263.0,61262.0,0.081702]
[1728563186703,0.03156094,61263.0,61262.0,0.081702]
[1728563188002,0.0315605,61263.0,61262.0,0.081702]
[1728563188202,0.27766002,61266.0,61262.0,0.081702]
[1728563188203,0.19596202,61266.0,61262.0,0.081702]
[1728563188400,0.19596202,61266.0,61265.0,0.081698]
[1728563188701,0.081697,61266.0,61265.0,0.081698]
[1728563188902,0.11427385,61269.0,61268.0,0.081694]
[1728563189101,0.00244876,61275.0,61268.0,0.081694]
[1728563189102,0.11427385,61274.0,61270.0,0.3608]
[1728563189304,0.11672261,61275.0,61274.0,0.081686]
[1728563189608,0.00244876,61275.0,61274.0,0.081686]
[1728563190413,0.00244876,61275.0,61274.0,0.20155147]
[1728563190597,0.08413376,61275.0,61274.0,0.28316402]
[1728563191093,0.00244876,61275.0,61274.0,0.28316402]
[1728563191299,0.08413376,61275.0,61274.0,0.28316402]
[1728563191510,0.08413376,61275.0,61274.0,0.081686]
[1728563191810,0.08413376,61275.0,61274.0,0.083686]
[1728563192001,0.08413376,61275.0,61274.0,0.20338846]
[1728563192607,0.08413376,61275.0,61274.0,0.28695628]
[1728563193509,0.08413376,61275.0,61274.0,0.16725382]
[1728563194100,0.08413376,61275.0,61274.0,0.28686552]
[1728563194495,0.00244876,61275.0,61274.0,0.16725382]
[1728563195108,0.00244876,61275.0,61274.0,0.28683115]
[1728563195410,0.00244876,61275.0,61274.0,0.085686]
[1728563196910,0.00244876,61275.0,61274.0,0.446486]
[1728563197310,0.08413376,61275.0,61274.0,0.446486]
[1728563205319,0.11568701,61275.0,61274.0,0.446486]
[1728563205712,0.08413376,61275.0,61274.0,0.446486]
[1728563206915,0.11568701,61275.0,61274.0,0.446486]
[1728563208816,0.03400201,61275.0,61274.0,0.446486]
[1728563209410,0.02344676,61287.0,61275.0,0.081684]
[1728563209719,0.02344676,61287.0,61284.0,0.19]
[1728563209915,0.02344676,61287.0,61282.0,0.3608]
[1728563210119,0.25277782,61285.0,61284.0,0.081673]
[1728563210320,0.081672,61285.0,61284.0,0.081673]
[1728563210519,0.11322193,61285.0,61284.0,0.081673]
[1728563210715,0.21198459,61285.0,61284.0,0.081673]
[1728563211017,0.081672,61285.0,61284.0,0.081673]
[1728563211412,0.442472,61285.0,61284.0,0.081673]
[1728563211829,0.52302401,61285.0,61284.0,0.081673]
[1728563212018,0.57316165,61285.0,61284.0,0.081673]
[1728563212225,0.451472,61285.0,61284.0,0.081673]
[1728563212414,0.580472,61285.0,61276.0,0.04888662]
[1728563212720,0.08168,61279.0,61278.0,0.081681]
[1728563214624,0.201677,61281.0,61280.0,0.081678]
[1728563215716,0.201676,61284.0,61283.0,0.081673]
[1728563216027,0.081676,61284.0,61283.0,0.081673]
[1728563216224,0.081676,61284.0,61283.0,0.201673]
[1728563217219,0.081676,61284.0,61283.0,0.081673]
[1728563217919,0.089676,61284.0,61283.0,0.081673]
[1728563220016,0.097676,61284.0,61283.0,0.081673]
[1728563220218,0.21936466,61284.0,61283.0,0.081673]
[1728563220728,0.33936466,61284.0,61283.0,0.081673]
[1728563222119,0.48625596,61284.0,61283.0,0.081673]
[1728563222519,0.33936158,61284.0,61283.0,0.081673]
[1728563223229,0.48625288,61284.0,61283.0,0.081673]
[1728563223725,0.36625288,61284.0,61283.0,0.081673]
[1728563224124,0.16922774,61284.0,61283.0,0.081673]
[1728563224328,0.29980384,61284.0,61283.0,0.081673]
[1728563225020,0.41980384,61284.0,61283.0,0.081673]
[1728563226034,0.28922774,61284.0,61283.0,0.081673]
[1728563226231,0.33936373,61284.0,61283.0,0.081673]
[1728563227324,0.217676,61284.0,61283.0,0.081673]
[1728563227530,0.217676,61284.0,61283.0,0.14685516]
[1728563228824,0.578476,61284.0,61283.0,0.06518216]
[1728563229021,0.578476,61284.0,61283.0,0.04899035]
[1728563230028,0.081677,61281.0,61280.0,0.06518216]
[1728563230329,0.201677,61281.0,61280.0,0.06518216]
[1728563230528,0.201677,61281.0,61280.0,0.14686016]
[1728563231327,0.211677,61281.0,61280.0,0.14686016]
[1728563232728,0.211677,61281.0,61280.0,0.14700408]
[1728563234430,0.211677,61281.0,61280.0,0.081678]
[1728563235135,0.283228,61281.0,61280.0,0.081678]
[1728563236138,0.4802557,61281.0,61280.0,0.081678]
[1728563236328,0.3602557,61281.0,61280.0,0.081678]
[1728563236534,0.4802557,61281.0,61280.0,0.081678]
[1728563236727,0.2133644,61281.0,61280.0,0.081678]
[1728563236939,0.091677,61281.0,61280.0,0.081678]
[1728563237939,0.16322728,61281.0,61280.0,0.081678]
[1728563238925,0.28322728,61281.0,61280.0,0.081678]
[1728563240147,0.211677,61281.0,61280.0,0.081678]
[1728563241149,0.28322785,61281.0,61280.0,0.081678]
[1728563242136,0.211677,61281.0,61280.0,0.081678]
[1728563243935,0.211677,61281.0,61280.0,0.14701375]
[1728563247243,0.211677,61281.0,61280.0,0.081678]
[1728563253145,0.211677,61281.0,61280.0,0.442478]
[1728563253358,0.01,61281.0,61280.0,0.442478]
[1728563253552,0.01,61281.0,61280.0,0.62781617]
[1728563253741,0.01,61281.0,61280.0,0.62781363]
[1728563253945,0.00244776,61294.0,61290.0,0.081665]
[1728563254144,0.00244776,61294.0,61293.0,0.201661]
[1728563254356,0.00244776,61294.0,61293.0,0.081661]
[1728563254753,0.081659,61294.0,61293.0,0.081661]
[1728563255250,0.095659,61294.0,61293.0,0.081661]
[1728563255458,0.014,61294.0,61293.0,0.081661]
[1728563255657,0.014,61294.0,61293.0,0.13061892]
[1728563255960,0.215659,61294.0,61293.0,0.13061892]
[1728563256158,0.215659,61294.0,61293.0,0.081661]
[1728563256950,0.134,61294.0,61293.0,0.081661]
[1728563257143,0.14966332,61294.0,61293.0,0.082661]
[1728563257654,0.016,61294.0,61293.0,0.081661]
[1728563258157,0.097659,61294.0,61293.0,0.081661]
[1728563258349,0.205659,61294.0,61293.0,0.081661]
[1728563258652,0.47400904,61294.0,61293.0,0.081661]
[1728563259150,0.32731938,61294.0,61293.0,0.081661]
[1728563261253,0.27719411,61294.0,61293.0,0.081661]
[1728563261845,0.15719411,61294.0,61293.0,0.081661]
[1728563262349,0.15719418,61294.0,61293.0,0.081661]
[1728563262750,0.085659,61294.0,61293.0,0.081661]
[1728563263752,0.15719418,61294.0,61293.0,0.081661]
[1728563264553,0.07553518,61294.0,61293.0,0.081661]
[1728563265245,0.004,61294.0,61293.0,0.081661]
[1728563266050,0.085659,61294.0,61293.0,0.081661]
[1728563272460,0.11720371,61294.0,61293.0,0.081661]
[1728563272756,0.085659,61294.0,61293.0,0.081661]
[1728563273966,0.20731871,61294.0,61293.0,0.081661]
[1728563275954,0.12565971,61294.0,61293.0,0.081661]
[1728563276361,0.20731871,61294.0,61293.0,0.081661]
[1728563277362,0.20731849,61294.0,61293.0,0.081661]
[1728563277561,0.12565949,61294.0,61293.0,0.081661]
[1728563277958,0.085659,61294.0,61293.0,0.081661]
[1728563279064,0.20731846,61294.0,61293.0,0.081661]
[1728563280158,0.37025483,61294.0,61293.0,0.081661]
[1728563280359,0.085659,61294.0,61293.0,0.081661]
[1728563284659,0.004,61294.0,61293.0,0.081661]
[1728563286071,0.03554642,61294.0,61293.0,0.081661]
[1728563286963,0.11720542,61294.0,61293.0,0.081661]
[1728563287363,0.085659,61294.0,61293.0,0.081661]
[1728563288967,0.081662,61292.0,61289.0,0.06531414]
[1728563289162,0.081662,61292.0,61280.0,0.00244759]
[1728563289163,0.4808,61290.0,61286.0,0.04900924]
[1728563289378,0.201669,61287.0,61286.0,0.04900924]
[1728563289563,0.201669,61287.0,61283.0,0.06531414]
[1728563289564,0.081671,61285.0,61284.0,0.13068124]
[1728563289764,0.201671,61285.0,61284.0,0.081672]
[1728563291463,0.202671,61285.0,61284.0,0.088672]
[1728563291664,0.001,61285.0,61284.0,0.088672]
[1728563292569,0.002,61285.0,61284.0,0.095672]
[1728563293465,0.122,61285.0,61284.0,0.095672]
[1728563295073,0.203671,61285.0,61284.0,0.095672]
[1728563295473,0.27521822,61285.0,61284.0,0.095672]
[1728563295773,0.15355004,61285.0,61284.0,0.095672]
[1728563295976,0.19354705,61285.0,61284.0,0.095672]
[1728563296167,0.15355004,61285.0,61284.0,0.095672]
[1728563296670,0.26760758,61285.0,61284.0,0.095672]
[1728563296871,0.34927858,61285.0,61284.0,0.095672]
[1728563297074,0.27521832,61285.0,61284.0,0.095672]
[1728563298471,0.07354732,61285.0,61284.0,0.095672]
[1728563298778,0.07354732,61285.0,61284.0,0.456472]
[1728563298779,0.11605959,61285.0,61284.0,0.456472]
[1728563298969,0.03355004,61285.0,61284.0,0.456472]
[1728563299773,0.03354764,61285.0,61284.0,0.456472]
[1728563299972,0.11406361,61287.0,61284.0,0.456472]
[1728563300277,0.11406361,61287.0,61286.0,0.08167]
[1728563301476,0.11407937,61289.0,61286.0,1.65199]
[1728563301771,0.1469061,61304.0,61295.0,0.081658]
[1728563301976,0.1469061,61310.0,61303.0,0.8416]
[1728563302174,0.1469061,61313.0,61306.0,0.201643]
[1728563302475,0.081632,61315.0,61306.0,0.32266398]
[1728563302674,0.081632,61315.0,61314.0,0.081633]
[1728563304075,0.081632,61315.0,61314.0,0.001]
[1728563304076,0.215632,61315.0,61314.0,0.001]
[1728563304380,0.335632,61315.0,61314.0,0.001]
[1728563304567,0.081638,61310.0,61304.0,0.04886292]
[1728563304769,0.201645,61305.0,61304.0,0.04886292]
[1728563304983,0.081646,61304.0,61303.0,0.13050992]
[1728563305170,0.081646,61304.0,61303.0,0.081647]
[1728563306467,0.3608,61312.0,61301.0,0.25759744]
[1728563306468,0.5508,61312.0,61301.0,0.25759744]
[1728563306671,0.081638,61310.0,61309.0,0.081637]
[1728563306874,0.086638,61310.0,61309.0,0.081637]
[1728563307575,0.081638,61310.0,61309.0,0.081637]
[1728563308880,0.091638,61310.0,61309.0,0.082637]
[1728563310482,0.12317686,61310.0,61309.0,0.082637]
[1728563310679,0.49397686,61310.0,61309.0,0.083637]
[1728563313184,0.41233886,61310.0,61309.0,0.083637]